fUSD/lending_fUSD_20250623
["ID","MTS","AMOUNT","RATE_DAILY","PERIOD"]
[367260557,1750720292765,-603.64,0.00023561,2]
[367260558,1750720292775,-1024.07,0.00023561,2]
[367260559,1750720292784,-490.0,0.00023561,2]
[367260560,1750720292794,-1147.26,0.00023561,2]
[367260561,1750720292803,-490.0,0.00023561,2]
[367260562,1750720292813,-490.0,0.00023561,2]
[367260563,1750720292824,-490.0,0.00023561,2]
[367260564,1750720292834,-1295.03,0.00023561,2]
[367260565,1750720292844,-1174.91,0.00023561,2]
[367260566,1750720292854,-490.0,0.00023561,2]
[367260567,1750720292863,-1105.76,0.00023561,2]
[367260568,1750720292873,-490.0,0.00023561,2]
[367260569,1750720292882,-490.0,0.00023561,2]
[367260570,1750720292892,-850.78,0.00023561,2]
[367260571,1750720292903,-490.0,0.00023561,2]
[367260572,1750720292915,-490.0,0.00023561,2]
[367260573,1750720292924,-602.16,0.00023561,2]
[367260574,1750720292934,-490.0,0.00023561,2]
[367260575,1750720292948,-490.0,0.00023561,2]
[367260576,1750720292959,-490.0,0.00023561,2]
[367260577,1750720292971,-670.97,0.00023561,2]
[367260578,1750720292981,-1125.48,0.00023561,2]
[367260579,1750720292992,-490.0,0.00023561,2]
[367260580,1750720293002,-1015.98,0.00023561,2]
[367260581,1750720293012,-490.0,0.00023561,2]
[367260582,1750720293023,-896.78,0.00023561,2]
[367260583,1750720293033,-991.79,0.00023561,2]
[367260584,1750720293043,-533.80676939,0.00023561,2]
[367260585,1750720293053,-490.0,0.00023561,2]
[367260586,1750720293063,-285.06019171,0.00023561,2]
[367260587,1750720293073,-617.71,0.00023561,2]
[367260588,1750720293083,-490.0,0.00023561,2]
[367260589,1750720293093,-490.0,0.00023561,2]
[367260590,1750720293104,-663.55,0.00023561,2]
[367260591,1750720293115,-490.0,0.00023561,2]
[367260592,1750720293125,-753.16,0.00023561,2]
[367260593,1750720293135,-1169.56,0.00023561,2]
[367260594,1750720293146,-310.27755528,0.00023561,2]
[367260595,1750720293156,-798.85,0.00023561,2]
[367260596,1750720293168,-816.02,0.00023561,2]
[367260597,1750720293178,-1226.43,0.00023561,2]
[367260598,1750720293187,-1692.03,0.00023561,2]
[367260599,1750720293198,-490.0,0.00023561,2]
[367260600,1750720293208,-743.41,0.00023561,2]
[367260601,1750720293218,-490.0,0.00023561,2]
[367260602,1750720293228,-490.0,0.00023561,2]
[367260603,1750720293238,-490.0,0.00023561,2]
[367260604,1750720293249,-1035.5,0.00023561,2]
[367260605,1750720293258,-1428.24,0.00023561,2]
[367260606,1750720293268,-578.07,0.00023561,2]
[367260607,1750720293278,-490.0,0.00023561,2]
[367260608,1750720293288,-490.0,0.00023561,2]
[367260609,1750720293299,-1560.27,0.00023561,2]
[367260610,1750720293309,-490.0,0.00023561,2]
[367260611,1750720293318,-490.0,0.00023561,2]
[367260612,1750720293328,-1138.31,0.00023561,2]
[367260613,1750720293339,-490.0,0.00023561,2]
[367260614,1750720293349,-490.0,0.00023561,2]
[367260615,1750720293359,-490.0,0.00023561,2]
[367260616,1750720293370,-490.0,0.00023561,2]
[367260617,1750720293380,-610.23,0.00023561,2]
[367260618,1750720293391,-1540.72,0.00023561,2]
[367260619,1750720293401,-490.0,0.00023561,2]
[367260620,1750720293412,-956.42,0.00023561,2]
[367260621,1750720293422,-490.0,0.00023561,2]
[367260622,1750720293433,-490.0,0.00023561,2]
[367260623,1750720293443,-755.88,0.00023561,2]
[367260624,1750720293453,-490.0,0.00023561,2]
[367260625,1750720293463,-510.44,0.00023561,2]
[367260626,1750720293472,-490.0,0.00023561,2]
[367260627,1750720293484,-490.0,0.00023561,2]
[367260628,1750720293494,-243.78965212,0.00023561,2]
[367260629,1750720293504,-643.85,0.00023561,2]
[367260630,1750720293515,-599.74,0.00023561,2]
[367260631,1750720293525,-490.0,0.00023561,2]
[367260632,1750720293535,-710.51,0.00023561,2]
[367260633,1750720293545,-490.0,0.00023561,2]
[367260634,1750720293555,-490.0,0.00023561,2]
[367260635,1750720293566,-749.42,0.00023561,2]
[367260636,1750720293576,-490.0,0.00023561,2]
[367260637,1750720293587,-490.0,0.00023561,2]
[367260638,1750720293596,-917.23,0.00023561,2]
[367260639,1750720293606,-490.0,0.00023561,2]
[367260640,1750720293615,-599.32,0.00023561,2]
[367260641,1750720293625,-720.89,0.00023561,2]
[367260642,1750720293636,-664.28,0.00023561,2]
[367260643,1750720293646,-1380.1,0.00023561,2]
[367260644,1750720293656,-490.0,0.00023561,2]
[367260645,1750720293667,-912.94,0.00023561,2]
[367260646,1750720293678,-490.0,0.00023561,2]
[367260647,1750720293688,-490.0,0.00023561,2]
[367260648,1750720293698,-583.16,0.00023561,2]
[367260649,1750720293708,-1214.44,0.00023561,2]
[367260650,1750720293718,-490.0,0.00023561,2]
[367260651,1750720293728,-490.0,0.00023561,2]
[367260652,1750720293738,-1030.72,0.00023561,2]
[367260653,1750720293748,-602.99,0.00023561,2]
[367260654,1750720293757,-490.0,0.00023561,2]
[367260655,1750720293767,-592.75,0.00023561,2]
[367260656,1750720293777,-917.93,0.00023561,2]
[367260657,1750720293787,-940.21,0.00023561,2]
[367260658,1750720293796,-490.0,0.00023561,2]
[367260659,1750720293806,-1267.09,0.00023561,2]
[367260660,1750720293816,-361.31040599,0.00023561,2]
[367260661,1750720293826,-490.0,0.00023561,2]
[367260662,1750720293836,-490.0,0.00023561,2]
[367260663,1750720293845,-761.58,0.00023561,2]
[367260664,1750720293856,-490.0,0.00023561,2]
[367260665,1750720293866,-613.73,0.00023561,2]
[367260666,1750720293878,-1017.08,0.00023561,2]
[367260667,1750720293887,-490.0,0.00023561,2]
[367260668,1750720293897,-694.19,0.00023561,2]
[367260669,1750720293908,-490.0,0.00023561,2]
[367260670,1750720293918,-897.84,0.00023561,2]
[367260671,1750720293929,-982.43,0.00023561,2]
[367260672,1750720293940,-490.0,0.00023561,2]
[367260673,1750720293952,-490.0,0.00023561,2]
[367260674,1750720293963,-760.55,0.00023561,2]
[367260675,1750720293973,-490.0,0.00023561,2]
[367260676,1750720293983,-1819.88,0.00023561,2]
[367260677,1750720293993,-490.0,0.00023561,2]
[367260678,1750720294003,-669.64,0.00023561,2]
[367260679,1750720294012,-490.0,0.00023561,2]
[367260680,1750720294024,-490.0,0.00023561,2]
[367260681,1750720294034,-644.61,0.00023561,2]
[367260682,1750720294045,-490.0,0.00023561,2]
[367260683,1750720294055,-490.0,0.00023561,2]
[367260684,1750720294065,-1824.55,0.00023561,2]
[367260685,1750720294076,-963.57,0.00023561,2]
[367260686,1750720294086,-536.46,0.00023561,2]
[367260687,1750720294096,-490.0,0.00023561,2]
[367260688,1750720294108,-490.0,0.00023561,2]
[367260689,1750720294118,-2293.31,0.00023561,2]
[367260690,1750720294128,-490.0,0.00023561,2]
[367260691,1750720294139,-1489.68,0.00023561,2]
[367260692,1750720294149,-646.41,0.00023561,2]
[367260693,1750720294159,-2805.91,0.00023561,2]
[367260694,1750720294169,-1394.63,0.00023561,2]
[367260695,1750720294179,-2616.36,0.00023561,2]
[367260696,1750720294189,-490.0,0.00023561,2]
[367260697,1750720294200,-638.23,0.00023561,2]
[367260698,1750720294210,-497.04,0.00023561,2]
[367260699,1750720294221,-831.27,0.00023561,2]
[367260700,1750720294232,-769.28,0.00023561,2]
[367260701,1750720294242,-3452.29,0.00023561,2]
[367260702,1750720294252,-581.2,0.00023561,2]
[367260703,1750720294262,-9399.59,0.00023561,2]
[367260704,1750720294272,-710.04,0.00023561,2]
[367260705,1750720294282,-1061.59,0.00023561,2]
[367260706,1750720294292,-490.0,0.00023561,2]
[367260707,1750720294302,-490.0,0.00023561,2]
[367260708,1750720294312,-947.34,0.00023561,2]
[367260709,1750720294322,-1026.38,0.00023561,2]
[367260710,1750720294332,-726.73,0.00023561,2]
[367260711,1750720294342,-1184.26,0.00023561,2]
[367260712,1750720294352,-1802.18,0.00023561,2]
[367260713,1750720294363,-792.98,0.00023561,2]
[367260714,1750720294373,-1150.8,0.00023561,2]
[367260715,1750720294383,-930.74,0.00023561,2]
[367260716,1750720294393,-605.1,0.00023561,2]
[367260717,1750720294403,-863.73,0.00023561,2]
[367260718,1750720294414,-4136.86,0.00023561,2]
[367260719,1750720294424,-490.0,0.00023561,2]
[367260720,1750720294435,-538.91,0.00023561,2]
[367260721,1750720294446,-657.58,0.00023561,2]
[367260722,1750720294456,-2102.05,0.00023561,2]
[367260723,1750720294466,-914.31,0.00023561,2]
[367260724,1750720294476,-870.44,0.00023561,2]
[367260725,1750720294487,-490.0,0.00023561,2]
[367260726,1750720294496,-2161.05,0.00023561,2]
[367260727,1750720294507,-598.29,0.00023561,2]
[367260728,1750720294517,-1160.51,0.00023561,2]
[367260729,1750720294527,-1075.55,0.00023561,2]
[367260730,1750720294537,-5318.79,0.00023561,2]
[367260731,1750720294547,-4925.64,0.00023561,2]
[367260732,1750720294557,-690.98,0.00023561,2]
[367260733,1750720294566,-2160.42,0.00023561,2]
[367260734,1750720294576,-582.65,0.00023561,2]
[367260735,1750720294586,-490.0,0.00023561,2]
[367260736,1750720294596,-596.44,0.00023561,2]
[367260737,1750720294606,-2330.86,0.00023561,2]
[367260738,1750720294616,-1061.28,0.00023561,2]
[367260739,1750720294626,-3640.93,0.00023561,2]
[367260740,1750720294636,-713.85,0.00023561,2]
[367260741,1750720294646,-490.0,0.00023561,2]
[367260742,1750720294657,-546.51,0.00023561,2]
[367260743,1750720294669,-1131.4,0.00023561,2]
[367260744,1750720294679,-913.07,0.00023561,2]
[367260745,1750720294690,-622.0,0.00023561,2]
[367260746,1750720294700,-888.12,0.00023561,2]
[367260747,1750720294710,-964.98,0.00023561,2]
[367260748,1750720294720,-503.26,0.00023561,2]
[367260749,1750720294729,-654.36,0.00023561,2]
[367260750,1750720294740,-917.79,0.00023561,2]
[367260751,1750720294750,-2848.4,0.00023561,2]
[367260752,1750720294760,-568.87358922,0.00023561,2]
[367260753,1750720294770,-804.65,0.00023561,2]
[367260754,1750720294780,-595.99,0.00023561,2]
[367260755,1750720294790,-1492.92,0.00023561,2]
[367260756,1750720294800,-490.0,0.00023561,2]
[367260757,1750720294811,-1166.2,0.00023561,2]
[367260758,1750720294821,-1703.71,0.00023561,2]
[367260759,1750720295052,-827.46,0.00023561,2]
[367260760,1750720295063,-490.0,0.00023561,2]
[367260761,1750720295074,-1312.94,0.00023561,2]
[367260762,1750720295084,-1989.89,0.00023561,2]
[367260763,1750720295094,-490.0,0.00023561,2]
[367260764,1750720295103,-870.99,0.00023561,2]
[367260765,1750720295115,-965.17,0.00023561,2]
[367260766,1750720295126,-637.24,0.00023561,2]
[367260767,1750720295136,-1651.42,0.00023561,2]
[367260768,1750720295145,-635.65,0.00023561,2]
[367260769,1750720295155,-785.95,0.00023561,2]
[367260770,1750720295166,-1518.67,0.00023561,2]
[367260771,1750720295176,-625.98,0.00023561,2]
[367260772,1750720295186,-490.0,0.00023561,2]
[367260773,1750720295195,-3091.78,0.00023561,2]
[367260774,1750720295206,-674.96,0.00023561,2]
[367260775,1750720295217,-1403.62,0.00023561,2]
[367260776,1750720295227,-588.85,0.00023561,2]
[367260777,1750720295238,-792.11,0.00023561,2]
[367260778,1750720295247,-736.24,0.00023561,2]
[367260779,1750720295258,-1521.33,0.00023561,2]
[367260780,1750720295267,-608.22,0.00023561,2]
[367260781,1750720295278,-656.6,0.00023561,2]
[367260782,1750720295288,-490.0,0.00023561,2]
[367260783,1750720295299,-2536.56,0.00023561,2]
[367260784,1750720295309,-552.96,0.00023561,2]
[367260785,1750720295319,-490.0,0.00023561,2]
[367260786,1750720295328,-490.0,0.00023561,2]
[367260787,1750720295338,-490.0,0.00023561,2]
[367260788,1750720295347,-954.36,0.00023561,2]
[367260789,1750720295357,-3653.75,0.00023561,2]
[367260790,1750720295366,-1770.55,0.00023561,2]
[367260791,1750720295376,-490.0,0.00023561,2]
[367260792,1750720295385,-1766.86,0.00023561,2]
[367260793,1750720295395,-6832.89,0.00023561,2]
[367260794,1750720295404,-1012.51,0.00023561,2]
[367260795,1750720295415,-1301.41,0.00023561,2]
[367260796,1750720295424,-700.46,0.00023561,2]
[367260797,1750720295435,-575.02,0.00023561,2]
[367260798,1750720295445,-99267.01,0.00023561,2]
[367260799,1750720295455,-490.0,0.00023561,2]
[367260800,1750720295464,-3999.93,0.00023561,2]
[367260801,1750720295474,-1251.72,0.00023561,2]
[367260802,1750720295484,-490.0,0.00023561,2]
[367260803,1750720295494,-690.99,0.00023561,2]
[367260804,1750720295504,-490.0,0.00023561,2]
[367260805,1750720295514,-1289.5,0.00023561,2]
[367260806,1750720295523,-674.55,0.00023561,2]
[367260807,1750720295533,-892.01,0.00023561,2]
[367260808,1750720295543,-586.68,0.00023561,2]
[367260809,1750720295553,-1186.95,0.00023561,2]
[367260810,1750720295563,-628.08,0.00023561,2]
[367260811,1750720295573,-491.89,0.00023561,2]
[367260812,1750720295583,-1120.03,0.00023561,2]
[367260813,1750720295592,-897.51,0.00023561,2]
[367260814,1750720295602,-1083.77,0.00023561,2]
[367260815,1750720295612,-490.0,0.00023561,2]
[367260816,1750720295622,-641.31,0.00023561,2]
[367260817,1750720295631,-1068.09,0.00023561,2]
[367260818,1750720295642,-1194.36,0.00023561,2]
[367260819,1750720295651,-490.0,0.00023561,2]
[367260820,1750720295661,-767.69,0.00023561,2]
[367260821,1750720295671,-575.13,0.00023561,2]
[367260822,1750720295681,-2490.5,0.00023561,2]
[367260823,1750720295691,-1497.6,0.00023561,2]
[367260824,1750720295701,-566.87,0.00023561,2]
[367260825,1750720295710,-533.37,0.00023561,2]
[367260826,1750720295720,-830.3,0.00023561,2]
[367260827,1750720295732,-1805.1,0.00023561,2]
[367260828,1750720295743,-776.33,0.00023561,2]
[367260829,1750720295755,-811.01,0.00023561,2]
[367260830,1750720295767,-12231.5,0.00023561,2]
[367260831,1750720295776,-895.61,0.00023561,2]
[367260832,1750720295787,-1834.68,0.00023561,2]
[367260833,1750720295798,-604.76,0.00023561,2]
[367260834,1750720295807,-942.76,0.00023561,2]
[367260835,1750720295816,-9723.96,0.00023561,2]
[367260836,1750720295826,-490.0,0.00023561,2]
[367260837,1750720295836,-490.0,0.00023561,2]
[367260838,1750720295846,-3237.93,0.00023561,2]
[367260839,1750720295856,-783.99,0.00023561,2]
[367260840,1750720295866,-4513.59,0.00023561,2]
[367260841,1750720295876,-490.0,0.00023561,2]
[367260842,1750720295886,-1103.03,0.00023561,2]
[367260843,1750720295895,-535.9,0.00023561,2]
[367260844,1750720295905,-490.0,0.00023561,2]
[367260845,1750720295916,-1066.43,0.00023561,2]
[367260846,1750720295926,-490.0,0.00023561,2]
[367260847,1750720295936,-907.6,0.00023561,2]
[367260848,1750720295949,-947.45,0.00023561,2]
[367260849,1750720295959,-1319.89,0.00023561,2]
[367260850,1750720295969,-1324.93,0.00023561,2]
[367260851,1750720295978,-490.0,0.00023561,2]
[367260852,1750720295989,-4371.79,0.00023561,2]
[367260853,1750720295999,-1113.07,0.00023561,2]
[367260854,1750720296009,-490.0,0.00023561,2]
[367260855,1750720296019,-744.09,0.00023561,2]
[367260856,1750720296029,-630.35,0.00023561,2]
[367260857,1750720296039,-490.0,0.00023561,2]
[367260858,1750720296048,-883.29,0.00023561,2]
[367260859,1750720296058,-898.49,0.00023561,2]
[367260860,1750720296068,-994.28,0.00023561,2]
[367260861,1750720296078,-1761.89,0.00023561,2]
[367260862,1750720296088,-3421.79,0.00023561,2]
[367260863,1750720296098,-2038.68,0.00023561,2]
[367260864,1750720296107,-943.38,0.00023561,2]
[367260865,1750720296117,-490.0,0.00023561,2]
[367260866,1750720296126,-490.0,0.00023561,2]
[367260867,1750720296135,-2547.54,0.00023561,2]
[367260868,1750720296145,-490.0,0.00023561,2]
[367260869,1750720296155,-1646.59,0.00023561,2]
[367260870,1750720296165,-646.88,0.00023561,2]
[367260871,1750720296174,-977.81,0.00023561,2]
[367260872,1750720296183,-705.0,0.00023561,2]
[367260873,1750720296192,-784.56,0.00023561,2]
[367260874,1750720296201,-571.39,0.00023561,2]
[367260875,1750720296210,-1044.99,0.00023561,2]
[367260876,1750720296220,-707.98,0.00023561,2]
[367260877,1750720296229,-490.0,0.00023561,2]
[367260878,1750720296238,-758.21,0.00023561,2]
[367260879,1750720296247,-490.0,0.00023561,2]
[367260880,1750720296256,-24749.35,0.00023561,2]
[367260881,1750720296265,-490.0,0.00023561,2]
[367260882,1750720296275,-2686.176655,0.00023561,2]
[367260883,1750720296284,-644.07,0.00023561,2]
[367260884,1750720296293,-961.66,0.00023561,2]
[367260885,1750720296302,-548.09,0.00023561,2]
[367260886,1750720296312,-490.0,0.00023561,2]
[367260887,1750720296321,-1807.84,0.00023561,2]
[367260888,1750720296330,-1049.93,0.00023561,2]
[367260889,1750720296340,-490.0,0.00023561,2]
[367260890,1750720296350,-1031.44,0.00023561,2]
[367260891,1750720296359,-490.0,0.00023561,2]
[367260892,1750720296369,-719.14,0.00023561,2]
[367260893,1750720296378,-505.77,0.00023561,2]
[367260894,1750720296388,-905.31,0.00023561,2]
[367260895,1750720296397,-735.92,0.00023561,2]
[367260896,1750720296407,-629.84,0.00023561,2]
[367260897,1750720296417,-884.52,0.00023561,2]
[367260898,1750720296426,-652.97,0.00023561,2]
[367260899,1750720296435,-781.37,0.00023561,2]
[367260900,1750720296444,-1808.03,0.00023561,2]
[367260901,1750720296453,-229.25444531,0.00023561,2]
[367260902,1750720296463,-161.87274242,0.00023589,30]
[367260903,1750720296473,-7710.50293662,0.00023643,2]
[367260904,1750720296484,-210.0,0.0002367,2]
[367260905,1750720296495,-161.87274242,0.00023671,30]
[367260906,1750720296504,-202.0,0.00023676,8]
[367260907,1750720296515,-207.0,0.0002368,2]
[367260908,1750720296525,-500.0,0.00023695,2]
[367260909,1750720296534,-161.87274242,0.00023781,30]
[367260910,1750720296546,-7710.50293662,0.00023795,2]
[367260911,1750720296556,-68666.63,0.000238,7]
[367260912,1750720296566,-2000.0,0.00023816,2]
[367260913,1750720296576,-2000.0,0.00023816,2]
[367260914,1750720296585,-290.0508,0.00023817,2]
[367260915,1750720296595,-3969.2090358,0.00023819,2]
[367260916,1750720296605,-13548.82097428,0.00023831,10]
[367260917,1750720296614,-1831.946697,0.00023835,2]
[367260918,1750720296623,-587.704015,0.00023835,2]
[367260919,1750720296632,-490.0,0.00023835,2]
[367260920,1750720296641,-490.0,0.00023835,2]
[367260921,1750720296651,-490.0,0.00023835,2]
[367260922,1750720296663,-490.0,0.00023835,2]
[367260923,1750720296672,-563.59,0.00023835,2]
[367260924,1750720296681,-490.0,0.00023835,2]
[367260925,1750720296691,-743.16,0.00023835,2]
[367260926,1750720296700,-646.68,0.00023835,2]
[367260927,1750720296709,-490.0,0.00023835,2]
[367260928,1750720296719,-490.0,0.00023835,2]
[367260929,1750720296728,-603.39,0.00023835,2]
[367260930,1750720296738,-490.0,0.00023835,2]
[367260931,1750720296747,-557.33,0.00023835,2]
[367260932,1750720296756,-490.0,0.00023835,2]
[367260933,1750720296766,-490.0,0.00023835,2]
[367260934,1750720296774,-518.87,0.00023835,2]
[367260935,1750720296784,-490.0,0.00023835,2]
[367260936,1750720296793,-490.0,0.00023835,2]
[367260937,1750720296803,-490.0,0.00023835,2]
[367260938,1750720296812,-490.0,0.00023835,2]
[367260939,1750720296821,-584.66,0.00023835,2]
[367260940,1750720296831,-590.15,0.00023835,2]
[367260941,1750720296840,-490.0,0.00023835,2]
[367260942,1750720296850,-780.22,0.00023835,2]
[367260943,1750720296859,-490.0,0.00023835,2]
[367260944,1750720296869,-490.0,0.00023835,2]
[367260945,1750720296879,-528.35,0.00023835,2]
[367260946,1750720296888,-594.06,0.00023835,2]
[367260947,1750720296897,-566.03,0.00023835,2]
[367260948,1750720296907,-490.0,0.00023835,2]
[367260949,1750720296917,-490.0,0.00023835,2]
[367260950,1750720296927,-300.0,0.00023835,2]
[367260951,1750720296936,-490.0,0.00023835,2]
[367260952,1750720296946,-724.91,0.00023835,2]
[367260953,1750720296956,-490.0,0.00023835,2]
[367260954,1750720296966,-630.84,0.00023835,2]
[367260955,1750720296975,-490.0,0.00023835,2]
[367260956,1750720296984,-524.88,0.00023835,2]
[367260957,1750720296994,-544.05749879,0.00023835,2]
[367260958,1750720297004,-490.0,0.00023835,2]
[367260959,1750720297013,-490.0,0.00023835,2]
[367260960,1750720297023,-490.0,0.00023835,2]
[367260961,1750720297034,-490.0,0.00023835,2]
[367260962,1750720297044,-589.97,0.00023835,2]
[367260963,1750720297053,-490.0,0.00023835,2]
[367260964,1750720297063,-490.0,0.00023835,2]
[367260965,1750720297072,-490.0,0.00023835,2]
[367260966,1750720297081,-743.05,0.00023835,2]
[367260967,1750720297091,-538.01,0.00023835,2]
[367260968,1750720297100,-693.79,0.00023835,2]
[367260969,1750720297109,-490.0,0.00023835,2]
[367260970,1750720297118,-490.0,0.00023835,2]
[367260971,1750720297128,-349.63511864,0.00023835,2]
[367260972,1750720297137,-484.72333965,0.00023835,2]
[367260973,1750720297147,-518.02528523,0.00023835,2]
[367260974,1750720297156,-793.15,0.00023835,2]
[367260975,1750720297166,-608.3,0.00023835,2]
[367260976,1750720297176,-610.99,0.00023835,2]
[367260977,1750720297185,-250.0,0.00023835,2]
[367260978,1750720297195,-490.0,0.00023835,2]
[367260979,1750720297204,-698.55,0.00023835,2]
[367260980,1750720297214,-500.02,0.00023835,2]
[367260981,1750720297223,-917.55,0.00023835,2]
[367260982,1750720297234,-812.47,0.00023835,2]
[367260983,1750720297243,-490.0,0.00023835,2]
[367260984,1750720297253,-637.003955,0.00023835,2]
[367260985,1750720297264,-490.0,0.00023835,2]
[367260986,1750720297275,-490.0,0.00023835,2]
[367260987,1750720297286,-759.24,0.00023835,2]
[367260988,1750720297296,-545.58,0.00023835,2]
[367260989,1750720297307,-840.98,0.00023835,2]
[367260990,1750720297316,-490.0,0.00023835,2]
[367260991,1750720297325,-1083.75,0.00023835,2]
[367260992,1750720297335,-490.0,0.00023835,2]
[367260993,1750720297344,-676.91,0.00023835,2]
[367260994,1750720297353,-827.47,0.00023835,2]
[367260995,1750720297363,-490.0,0.00023835,2]
[367260996,1750720297465,-628.72,0.00023835,2]
[367260997,1750720297475,-554.99,0.00023835,2]
[367260998,1750720297487,-1200.9,0.00023835,2]
[367260999,1750720297496,-574.5,0.00023835,2]
[367261000,1750720297507,-622.34,0.00023835,2]
[367261001,1750720297517,-490.0,0.00023835,2]
[367261002,1750720297527,-490.0,0.00023835,2]
[367261003,1750720297536,-538.21,0.00023835,2]
[367261004,1750720297546,-971.79,0.00023835,2]
[367261005,1750720297555,-1028.56,0.00023835,2]
[367261006,1750720297565,-490.0,0.00023835,2]
[367261007,1750720297574,-490.0,0.00023835,2]
[367261008,1750720297584,-490.0,0.00023835,2]
[367261009,1750720297593,-490.0,0.00023835,2]
[367261010,1750720297603,-490.0,0.00023835,2]
[367261011,1750720297612,-545.47,0.00023835,2]
[367261012,1750720297622,-1263.38,0.00023835,2]
[367261013,1750720297631,-505.37,0.00023835,2]
[367261014,1750720297640,-490.0,0.00023835,2]
[367261015,1750720297649,-688.47,0.00023835,2]
[367261016,1750720297658,-816.17,0.00023835,2]
[367261017,1750720297668,-490.0,0.00023835,2]
[367261018,1750720297677,-610.98,0.00023835,2]
[367261019,1750720297686,-511.19,0.00023835,2]
[367261020,1750720297695,-756.92,0.00023835,2]
[367261021,1750720297704,-490.0,0.00023835,2]
[367261022,1750720297713,-1422.61,0.00023835,2]
[367261023,1750720297722,-712.06,0.00023835,2]
[367261024,1750720297731,-544.78,0.00023835,2]
[367261025,1750720297740,-797.95,0.00023835,2]
[367261026,1750720297750,-798.42,0.00023835,2]
[367261027,1750720297759,-490.0,0.00023835,2]
[367261028,1750720297770,-490.0,0.00023835,2]
[367261029,1750720297782,-490.0,0.00023835,2]
[367261030,1750720297791,-948.64,0.00023835,2]
[367261031,1750720297804,-723.12,0.00023835,2]
[367261032,1750720297813,-490.0,0.00023835,2]
[367261033,1750720297823,-490.0,0.00023835,2]
[367261034,1750720297834,-406.48925547,0.00023835,2]
[367261035,1750720297844,-490.0,0.00023835,2]
[367261036,1750720297854,-547.15,0.00023835,2]
[367261037,1750720297864,-225.78,0.00023835,2]
[367261038,1750720297875,-664.8,0.00023835,2]
[367261039,1750720297885,-490.0,0.00023835,2]
[367261040,1750720297895,-490.0,0.00023835,2]
[367261041,1750720297906,-494.01,0.00023835,2]
[367261042,1750720297917,-765.15,0.00023835,2]
[367261043,1750720297928,-498.85,0.00023835,2]
[367261044,1750720297937,-490.0,0.00023835,2]
[367261045,1750720297951,-490.0,0.00023835,2]
[367261046,1750720297962,-490.0,0.00023835,2]
[367261047,1750720297972,-490.0,0.00023835,2]
[367261048,1750720297983,-603.64,0.00023835,2]
[367261049,1750720297992,-1024.07,0.00023835,2]
[367261050,1750720298001,-490.0,0.00023835,2]
[367261051,1750720298010,-1147.26,0.00023835,2]
[367261052,1750720298019,-490.0,0.00023835,2]
[367261053,1750720298028,-490.0,0.00023835,2]
[367261054,1750720298037,-490.0,0.00023835,2]
[367261055,1750720298047,-1295.03,0.00023835,2]
[367261056,1750720298055,-1174.91,0.00023835,2]